Cogmind - Beta 13 @@@ ROGUE MODE // 2024.05.27 @ 14:08:22 Player: Beef Result: Destroyed by Y-45 Defender with Beam Rifle Performance ------------- Evolutions (2) 1000 Regions Visited (5) 1000 Robots Destroyed (49) 245 Value Destroyed (1169) 1169 Prototype IDs (7) 140 Alien Tech Used (0) 0 Bonus (0) 0 TOTAL SCORE: 3554 Bonus ------- None Cogmind --------- Core Integrity 0/550 Matter 206/300 Energy 46/100 System Corruption 0% Temperature Warning (352) Movement Hovering (110) Ox1 Location -8/Materials Parts ------- > --- POWER (1) -------- (None) > --- PROPULSION (4) --- Aerolev Unit > --- UTILITY (4) ------ Signal Interpreter Targeting Computer Light Armor Plating > --- WEAPON (2) ------- Advanced Beam Cannon Flak Cannon > --- INVENTORY (5) ---- Light Nuclear Core Titanium Leg Advanced Beam Cannon Peak State ------------ > --- POWER ------------ Light Deuterium Engine > --- PROPULSION ------- Titanium Leg Aerolev Unit Aerolev Unit Flight Unit > --- UTILITY ---------- Signal Interpreter Targeting Computer Hardened Light Armor Plating Hacking Suite > --- WEAPON ----------- Advanced Beam Cannon Advanced Beam Cannon > --- INVENTORY -------- Light Nuclear Core Huge Storage Unit Pulse Rifle Minigun Flak Cannon [Rating: 29] Favorites ----------- Power Ion Engine Engine Ion Engine Power Core Light Nuclear Core Propulsion Aluminum Leg Treads Light Treads Leg Aluminum Leg Wheel Compact Wheel Hover Unit Improved Hover Unit Flight Unit Surge Thruster Utility Improved Heat Sink Device Improved Heat Sink Storage Medium Storage Unit Processor Signal Interpreter Hackware Hacking Suite Protection Medium Armor Plating Weapon Advanced Beam Cannon Energy Gun Pulse Rifle Energy Cannon Advanced Beam Cannon Ballistic Gun Assault Rifle Ballistic Cannon Flak Cannon Launcher Mini Grenade Launcher Build | -11 -10 -10 -9 -9 -8 ------- Run | Yrd Mat Min Mat Min Mat Slots Evolved 4 | . . . 2 . 2 Power . | . . . . . . Propulsion 2 | . . . 2 . . Utility 2 | . . . . . 2 Weapon . | . . . . . . Parts Attached 108 | 6 4 4 46 12 36 Power 9 | 1 . . 4 . 4 Engine 8 | 1 . . 4 . 3 Core 1 | . . . . . 1 Reactor . | . . . . . . Propulsion 32 | 2 2 1 18 2 7 Treads 2 | . . . 1 . 1 Leg 13 | 2 2 1 7 . 1 Wheel 2 | . . . . . 2 Hover 8 | . . . 6 . 2 Flight 7 | . . . 4 2 1 Utility 36 | 1 1 3 14 8 9 Device 12 | . 1 1 6 4 . Storage 3 | 1 . . 1 . 1 Processor 4 | . . . 2 . 2 Hackware 1 | . . . . . 1 Protection 16 | . . 2 5 4 5 Artifact . | . . . . . . Weapon 31 | 2 1 . 10 2 16 Energy Gun 14 | . 1 . 5 2 6 Energy Cannon 10 | . . . 3 . 7 Ballistic Gun 5 | 2 . . 1 . 2 Ballistic Cannon 1 | . . . . . 1 Launcher 1 | . . . 1 . . Special Weapon . | . . . . . . Impact Weapon . | . . . . . . Slashing Weapon . | . . . . . . Piercing Weapon . | . . . . . . Special Melee Weapon . | . . . . . . Unidentified Prototypes 3 | . . . 2 . 1 Parts Lost 24 | . 1 . 6 . 17 Power 3 | . . . 1 . 2 Propulsion 11 | . 1 . 4 . 6 Utility 7 | . . . 1 . 6 Weapon 3 | . . . . . 3 Highest Loss Streak 12 | . 1 . 6 . 12 To Critical Strikes 1 | . . . . . 1 Average Slot Usage (%) 85 | . 87 100 93 89 67 Engine 10 | . 14 14 11 11 6 Treads 1 | . . . . . 4 Leg 12 | . 21 28 16 . 3 Hover 6 | . . . 16 . 3 Flight 10 | . . . 6 44 5 Device 6 | . 7 6 5 18 1 Storage 6 | . 14 14 9 . . Processor 3 | . . . . . 11 Hackware 2 | . . . . . 8 Protection 5 | . . 7 4 3 7 Energy Gun 9 | . 6 14 11 12 3 Energy Cannon 3 | . . . 7 . 4 Ballistic Gun 5 | . 21 14 1 . 2 Naked Turns . | . . . . . . Heaviest Build 90 | 13 16 22 29 21 90 Greatest Support 40 | 20 20 20 40 12 20 Greatest Overweight (x) 6 | 1 4 1 6 1 5 Average Overweight (x) . | . . . . . . Largest Inventory Capacity 25 | 8 8 8 10 5 25 Average Capacity 7 | 7 8 8 9 5 5 Most Carried 10 | 3 8 8 10 5 5 Average Carried 5 | 1 4 7 6 4 3 Final Capacity 8 | 8 8 8 5 5 5 Final Carried 8 | 3 8 8 5 5 3 Class Distribution -------------------- 62% | Mutant 22% | Scavenger-Mutant 14% | Sprinter Dominant Class ---------------- Scavenger-Mutant | -10/Materials Mutant | -10/Mines Mutant | -9/Materials Sprinter | -9/Mines Mutant | -8/Materials Resources | -11 -10 -10 -9 -9 -8 ----------- Run | Yrd Mat Min Mat Min Mat Matter Collected 1322 | 228 111 88 375 227 293 Remotely . | . . . . . . Salvage Created 1592 | . 128 170 760 126 408 Parts 96 | . 13 6 51 13 13 Haulers Intercepted 3 | . . . 2 . 1 Recyclers Shooed . | . . . . . . Parts Field Recycled . | . . . . . . Retrieved Matter . | . . . . . . Parts Self-Destructed . | . . . . . . Prevented . | . . . . . . Kills | -11 -10 -10 -9 -9 -8 ------- Run | Yrd Mat Min Mat Min Mat Combat Hostiles Destroyed 41 | . 5 2 16 8 10 Guns 31 | . 5 2 9 8 7 Cannons 9 | . . . 7 . 2 Classes Destroyed 10 | . 2 1 6 . 1 Worker 1 | . . . 1 . . Tunneler 1 | . . . 1 . . Hauler 3 | . . . 2 . 1 Recycler 1 | . . 1 . . . Mechanic 1 | . . . 1 . . Watcher 1 | . . . 1 . . Swarmer 19 | . 3 . 6 7 3 Grunt 15 | . 2 2 7 1 3 Sentry 5 | . . . 3 . 2 Hunter 2 | . . . . . 2 Best Kill Streak 5 | . 5 2 5 4 3 Combat Bots Only 5 | . 5 1 3 4 3 Max Kills in Single Turn 2 | . 1 1 2 1 2 Gunslinging 1 | . . . . . 1 Exploded . | . . . . . . Melee . | . . . . . . Uniques/NPCs Destroyed . | . . . . . . Combat | -11 -10 -10 -9 -9 -8 -------- Run | Yrd Mat Min Mat Min Mat Hostile Shots Fired 344 | . 14 16 83 44 187 Missed 100 | . 6 5 27 14 48 Damage Taken 3299 | . 171 172 626 313 2017 Core 701 | . 12 15 85 37 552 Absorbed by Shields . | . . . . . . Core Remaining (%) 86 | 100 . 89 . 69 . Volleys Fired 151 | . 11 16 63 22 39 Largest 2 | . 2 2 2 2 2 Hottest 136 | . 40 85 113 126 136 Shots Fired 256 | . 22 32 99 33 70 Gun 193 | . 22 32 59 33 47 Cannon 63 | . . . 40 . 23 Launcher . | . . . . . . Special . | . . . . . . Kinetic 73 | . 22 16 10 . 25 Thermal 148 | . . 16 62 33 37 Explosive . | . . . . . . Electromagnetic 35 | . . . 27 . 8 Robot Hit Streak 10 | . 4 6 9 5 10 Robot Miss Streak 5 | . 4 3 4 3 5 Penetration Max . | . . . . . . Secondary Targets 3 | . . 1 . . 2 Max Gunslinging Chain 1 | . . 1 . . 1 Shots Hit Robots 166 | . 11 18 66 20 51 Core Hits 76 | . 7 6 33 8 22 Critical Kills . | . . . . . . Critical Parts Destroyed . | . . . . . . Critical Strikes 2 | . . 1 . . 1 Burn 2 | . . 1 . . 1 Melee Attacks . | . . . . . . Impact . | . . . . . . Slashing . | . . . . . . Piercing . | . . . . . . Sneak Attacks . | . . . . . . Combat Hostiles . | . . . . . . Follow-up Attacks . | . . . . . . Damage Inflicted 2778 | . 128 253 1087 338 972 Guns 1869 | . 128 253 616 338 534 Cannons 850 | . . . 471 . 379 Explosions 59 | . . . . . 59 Melee . | . . . . . . Ramming . | . . . . . . Kinetic 524 | . 128 141 47 . 208 Thermal 1777 | . . 112 698 338 629 Explosive . | . . . . . . Electromagnetic 477 | . . . 342 . 135 Impact . | . . . . . . Slashing . | . . . . . . Piercing . | . . . . . . Highest Corruption 5 | . . . 5 5 . Average Corruption 5 | . . . 5 5 . Corruption Purged . | . . . . . . Corruption Blocked . | . . . . . . Effects 28 | . . . 19 9 . Message Errors 3 | . . . 2 1 . Matter Fused 3 | . . . 1 2 . Heat Flow Errors 6 | . . . 5 1 . Energy Discharges 4 | . . . 4 . . Parts Rejected 3 | . . . 1 2 . Data Loss (minor) 5 | . . . 4 1 . Data Loss (major) 2 | . . . 1 1 . Alerts 1 | . . . . 1 . Weapon Failures 1 | . . . 1 . . Overload Shots . | . . . . . . Overflow Damage 8 | . 8 . . . . Projectiles . | . . . . . . Explosions 8 | . 8 . . . . Melee . | . . . . . . Knockbacks . | . . . . . . Impact . | . . . . . . Kinetic . | . . . . . . Secondary . | . . . . . . Self-Inflicted Damage 89 | . 89 . . . . Shots 1 | . 1 . . . . Rammed . | . . . . . . Targets Rammed . | . . . . . . Kicked . | . . . . . . Crushed . | . . . . . . Highest Temperature 430 | . 6 378 430 181 405 Average Temperature 122 | . 6 197 127 55 125 Received Heat Transfer 1050 | . 30 99 201 18 702 Effects 16 | . . 1 9 . 6 Shutdowns 2 | . . . 2 . . Energy Bleed 3 | . . 1 1 . 1 Interference 8 | . . . 3 . 5 Damage (major) 3 | . . . 3 . . Siege Activations . | . . . . . . Robots Corrupted 1 | . . . . . 1 Combat Hostiles 1 | . . . . . 1 Parts Fried 4 | . . . 3 . 1 Impact Corruptions . | . . . . . . Robots Melted . | . . . . . . Combat Hostiles . | . . . . . . Parts Melted 6 | . . . 1 . 5 Heat Transferred 3800 | . . 333 1369 740 1358 Parts Sabotaged . | . . . . . . Parts Stolen . | . . . . . . Parts Stripped . | . . . . . . Power Chain Reactions 1 | . . . . . 1 Alert | -11 -10 -10 -9 -9 -8 ------- Run | Yrd Mat Min Mat Min Mat Peak Influence 354 | . 245 150 347 354 352 Initial 137 | . . 95 58 84 137 Average 188 | . 160 133 196 230 219 Maximum Alert Level 1 | . 1 . 1 1 1 Low Security (%) 52 | 100 38 100 46 32 46 Level 1 47 | . 61 . 53 67 53 Level 2 . | . . . . . . Level 3 . | . . . . . . Level 4 . | . . . . . . Level 5 . | . . . . . . High Security . | . . . . . . Max Security . | . . . . . . Squads Dispatched 5 | . . . 3 . 2 Investigation 1 | . . . 1 . . Extermination . | . . . . . . Reinforcement 4 | . . . 2 . 2 Assault . | . . . . . . Garrison . | . . . . . . Intercept . | . . . . . . Searches Triggered . | . . . . . . Construction Impeded . | . . . . . . Haulers Reinforced . | . . . . . . Active Scanning Responses . | . . . . . . Cargo Convoy Interrupts . | . . . . . . Stealth | -11 -10 -10 -9 -9 -8 --------- Run | Yrd Mat Min Mat Min Mat Distress Signals 3 | . . . 2 . 1 Communications Jammed . | . . . . . . Distress Signals . | . . . . . . Times Spotted 79 | . 9 5 30 15 20 Peak Tracking Total 8 | . 3 2 6 4 8 Tactical Retreats 8 | . 2 . 3 3 . Traps | -11 -10 -10 -9 -9 -8 ------- Run | Yrd Mat Min Mat Min Mat Traps Triggered 3 | . . . 3 . . Indirectly . | . . . . . . Trap Hack Attempts . | . . . . . . Triggered . | . . . . . . Disarmed . | . . . . . . Reprogrammed . | . . . . . . Reused . | . . . . . . Traps Extracted . | . . . . . . Installed . | . . . . . . Triggered . | . . . . . . Machines | -11 -10 -10 -9 -9 -8 ---------- Run | Yrd Mat Min Mat Min Mat Machines Disabled 2 | . 2 . . . . Max in Single Turn 2 | . 2 . . . . Machines Repaired . | . . . . . . Machines Dismantled . | . . . . . . Machines Sabotaged . | . . . . . . Overloaded Fab Kills . | . . . . . . Hacking | -11 -10 -10 -9 -9 -8 --------- Run | Yrd Mat Min Mat Min Mat Machines Accessed 8 | . 1 . 4 . 3 Terminals 7 | . 1 . 3 . 3 Fabricators . | . . . . . . Repair Stations . | . . . . . . Recycling Units 1 | . . . 1 . . Scanalyzers . | . . . . . . Garrison Access . | . . . . . . Total Hacks 26 | . 3 . 12 . 11 Successful 14 | . 2 . 6 . 6 Failed 12 | . 1 . 6 . 5 Catastrophic 1 | . . . 1 . . Database Lockouts . | . . . . . . Manual . | . . . . . . Terminals 25 | . 3 . 11 . 11 Fabricators . | . . . . . . Repair Stations . | . . . . . . Recycling Units 1 | . . . 1 . . Scanalyzers . | . . . . . . Garrison Access . | . . . . . . Terminal Hacks 13 | . 2 . 5 . 6 Prototype ID Bank 3 | . . . 1 . 2 Branch Access Points 1 | . . . 1 . . Alert Level 4 | . 1 . 2 . 1 Unreport Threat 1 | . . . 1 . . Transport Status 1 | . . . . . 1 Zone Layout 3 | . 1 . . . 2 Fabricator Hacks . | . . . . . . Repair Station Hacks . | . . . . . . Recycling Unit Hacks 1 | . . . 1 . . Report Inventory 1 | . . . 1 . . Scanalyzer . | . . . . . . Garrison Access Hacks . | . . . . . . Unauthorized Hacks . | . . . . . . Terminals . | . . . . . . Fabricators . | . . . . . . Repair Stations . | . . . . . . Recycling Units . | . . . . . . Scanalyzers . | . . . . . . Garrison Access . | . . . . . . Data Cores Recovered . | . . . . . . Used . | . . . . . . Hacking Detections 7 | . 1 . 4 . 2 Full Trace Events 2 | . . . 1 . 1 Feedback Events . | . . . . . . Feedback Blocked . | . . . . . . Robot Schematics Acquired . | . . . . . . Robots Built . | . . . . . . Authchips . | . . . . . . Time . | . . . . . . Total Robot Build Rating . | . . . . . . Part Schematics Acquired . | . . . . . . Parts Built . | . . . . . . Authchips . | . . . . . . Time . | . . . . . . Total Part Build Rating . | . . . . . . Parts Repaired . | . . . . . . Time . | . . . . . . Parts Recycled . | . . . . . . Recycled Matter . | . . . . . . Retrieved Matter . | . . . . . . Retrieved Components . | . . . . . . Parts Scanalyzed . | . . . . . . Part Schematics Acquired . | . . . . . . Parts Damaged . | . . . . . . Bothacking | -11 -10 -10 -9 -9 -8 ------------ Run | Yrd Mat Min Mat Min Mat Used RIF Installer . | . . . . . . Robots Hacked . | . . . . . . Non-combat . | . . . . . . Combat . | . . . . . . Robot Hacks Applied . | . . . . . . Relay Couplers Released . | . . . . . . Fabnet Peak Effective % . | . . . . . . Robots Rewired . | . . . . . . Allies Hacked . | . . . . . . Hacks Repelled . | . . . . . . Allies | -11 -10 -10 -9 -9 -8 -------- Run | Yrd Mat Min Mat Min Mat Total Allies . | . . . . . . Largest Group . | . . . . . . Highest-Rated Group . | . . . . . . Highest-Rated Ally . | . . . . . . Total Orders . | . . . . . . Ally Attacks . | . . . . . . Total Damage . | . . . . . . Kills . | . . . . . . Allies Corrupted . | . . . . . . Allies Melted . | . . . . . . Intel | -11 -10 -10 -9 -9 -8 ------- Run | Yrd Mat Min Mat Min Mat Robot Analysis Total . | . . . . . . Derelict Logs Recovered 3 | . . 2 . 1 . Drone Launches . | . . . . . . Drone Recoveries . | . . . . . . Exploration | -11 -10 -10 -9 -9 -8 ------------- Run | Yrd Mat Min Mat Min Mat Turns Passed 2164 | 82 229 270 708 308 567 Spaces Moved 1974 | 64 142 140 590 673 365 Core 75 | 11 10 . . . 54 Treads 34 | . . . . . 34 Legs 576 | 53 132 140 146 . 105 Wheels 23 | . . . . . 23 Hover 350 | . . . 279 . 71 Flight 916 | . . . 165 673 78 Fastest Speed 26 | 50 120 120 26 26 26 Average Speed 74 | 111 129 154 71 27 107 Slowest Speed 480 | 120 250 190 275 66 480 Overloaded Moves . | . . . . . . Propulsion Burnouts . | . . . . . . Robots Hopped 5 | . . . . 4 1 Cave-ins Triggered . | . . . . . . Exploration Rate (%) 35 | 5 29 50 38 64 24 Regions Visited 5 Branch Regions 2 Pre-discovered Areas 1 | . . 1 . . . Known Exits Taken 1 | . . . 1 . . Unknown Exits Taken 4 | 1 1 1 . 1 . Scrap Searched 1 | . . 1 . . . Spaces Dug . | . . . . . . Terrain Destroyed 37 | . 34 . . . 3 Melee . | . . . . . . Projectile . | . . . . . . AOE 37 | . 34 . . . 3 Terrain Rammed . | . . . . . . Walls Destroyed . | . . . . . . Machines Disabled . | . . . . . . Actions | -11 -10 -10 -9 -9 -8 --------- Run | Yrd Mat Min Mat Min Mat Total 2413 | 72 169 162 775 757 478 Wait 78 | . . . 21 50 7 Move 1960 | 63 141 139 589 665 363 Hop 4 | . . . . 3 1 Pick Up 36 | 3 8 1 16 1 7 Fast Attach 43 | 6 2 . 19 2 14 Attach 35 | . 2 . 11 4 18 Detach 33 | . 2 . 13 3 15 Swap 30 | . . 4 16 6 4 Drop 43 | . 3 2 27 1 10 Fire 151 | . 11 16 63 22 39 Melee . | . . . . . . Ram . | . . . . . . Kick . | . . . . . . Crush . | . . . . . . Escape Stasis . | . . . . . . Rewire . | . . . . . . Trap . | . . . . . . Miscellaneous . | . . . . . . Route ------- -11/Scrapyard -10/Materials -10/Mines (discovered 2 exits: *Mat x2) -9/Materials (discovered 3 exits: *Mat / *Min x2) -9/Mines -8/Materials (discovered 2 exits: *Sto x2) History --------- Turn | Location | Event 9 | -11/Scrapyard | Discovered new exit (range 15) 83 | -11/Scrapyard | Entered Materials 234 | -10/Materials | Discovered new exit (range 13) 312 | -10/Materials | Entered Mines 324 | -10/Mines | Learned location of Mines (-9) 463 | -10/Mines | Discovered new exit (range 8) 552 | -10/Mines | Discovered new exit (range 11) 556 | -10/Mines | Found a hidden stash of uninstalled traps 582 | -10/Mines | Entered Materials 582 | -9/Materials | Evolved 2 slots: Propulsion x2 604 | -9/Materials | Discovered new exit (range 8) 728 | -9/Materials | Build established: Mutant 898 | -9/Materials | Lost 6 parts (1p4n1u) 1097 | -9/Materials | Discovered new exit (range 8) 1274 | -9/Materials | Identified exit to Mines 1290 | -9/Materials | Entered Mines 1295 | -9/Mines | Assembled infested the area 1300 | -9/Mines | Met a Derelict bent on vengeance 1300 | -9/Mines | Assisted by a Guerilla fighting off Assembled 1398 | -9/Mines | Learned 2 Materials zone layouts 1570 | -9/Mines | Discovered new exit (range 16) 1598 | -9/Mines | Entered Materials 1598 | -8/Materials | Evolved 2 slots: Utility x2 1599 | -8/Materials | Identified exit to Storage 1709 | -8/Materials | Lost 12 parts (1p5n4u2w) 2109 | -8/Materials | Discovered exit to Storage (range 16) 2125 | -8/Materials | Core integrity fell below 50% 2156 | -8/Materials | Core integrity fell below 20% 2165 | -8/Materials | Destroyed by Y-45 Defender with Beam Rifle Last Messages --------------- Downloading prototype IDs... Adv. Beam Cannon Adv. EMP Blaster 02131_ G-47 Trooper destroyed. 02136_ Overheating: System interference. 02136_ Signal Interpreter temporarily disabled. 02137_ Overheating: System interference. 02137_ Adv. Beam Cannon temporarily disabled. 02145_ Critical hit (Burn: +37). 02147_ Hrd. Light Armor Plating destroyed. 02151_ G-47 Trooper destroyed. 02153_ Lgt. Deuterium Engine destroyed. 02155_ Y-45 Defender destroyed. 02156_ Dropped Com. Wheel. 02156_ Acquired Lgt. Armor Plating. 02158_ Hacking Suite destroyed. 02158_ Acquired 60 matter. 02159_ Aerolev Unit destroyed. 02161_ Overheating: Energy bleed (-20). 02161_ Minigun destroyed. Map ----- +----------------------------------------------------+ | | | | | | | | | | | ?????????????????????????????????????????????????? | | ?????????????????????????????????????????????????? | | ?????????????????????????????????????????????????? | | ?????????????????????????????????????????????????? | | ?????????????????????????????????????????????????? | | ?????????????????????????????????????????????????? | | ??????????????????????????? ???????????????????? | | ??????????????????????????? > ??????????????????? | | ??????????????????????????? ??????????????????? | | ??????????????????????????? ??????????????????? | | ??????????????????????????? #??????????????????? | | ??????????????????????????? #??????????????????? | | ??????????????????????????? ###????????????????? | | ??????????????????????????# T?????????????????? | | ??????????????????????????# "??????????????????? | | ?????????????????########## #??????????????????? | | ?????????????????#] # #??????????????????? | | ?????????????????# %""" # #??????????????????? | | ?????????????????# """ # #??????????????????? | | ?????????????????#! *""" # #??????????????????? | | ?????????????????# g=%@Y +??????????????????? | | ?????????????????# g g # #??????????????????? | | ?????????????????# g # #??????????????????? | | ?????????????????# "T" # #??????????????????? | | ?????????????????# """ # #??????????????????? | | ?????????????????########## #??????????????# | | ????????????????? ! ????# #??????????????# " | | ??????????????????? ??# ################ "R | | ???????????????????"" """ # "" | | ???????????????????"" """ / | | ???????????????????"" """ # | | ??????????????????? ??# ###################+ | | ????????????????? ! ????# # ## | | ????????????????# ??????# # """ """ ## """ " | | ????????????????##????????# # """ """ ## """ " | | ??????????????????????????# # """ """ # """ " | | ??????????????????????????# # ## | | ??????????????????????????# # ## | | ?????????????############## ####+##+###### | | ?????######### [[ ^#????# | | ?????# ## ^############ | | ?????# """ ##%[ ] | | ?????#] "R" ## %###+#############+############## | | ?????# " " ## * #?# """ # #????????# | | ?????# ## #?# """"" # """[! #????????# | +----------------------------------------------------+ Best States ------------- Heat Dissipation 45 Energy Generation 14 Energy Capacity 265 Matter Stores 300 Matter Capacity 300 Sight Range 18 Robot Scan Range 14 Terrain Scan Range 16 Terrain Scan Density 10 Armor Coverage 225 Evasion (%) 64 Targeting Accuracy 5 Recoil Reduction 1 Offensive Hacking 10 Item Schematics ----------------- None Robot Schematics ------------------ None Fabricated ------------ Nothing Alien Tech Used ----------------- None Achievements -------------- None Challenges ------------ None Game ------ Seed ScanWeightPrototype Manual? 0 Play Time 00:26:28 Cumulative 28.0 hours Start 2024.05.27 @ 13:42:26 End 2024.05.27 @ 14:08:22 Sessions 1 Manual Loads 0 Difficulty Rogue Special Mode None Game No. 25 Rogue 25 Adventurer 0 Explorer 0 Win Type - Total 0 Types 0/0/0/0/0/0/0/0/0 Lore% 30 Gallery% 38 Achievement% 26 Wizard Run 0 Options --------- Layout 0 ASCII 0 Keyboard 1 Movement Numpad Keybinds 0 Fullscreen 2 Font 18/SmallcapsGlow Map View 76x50 Zoom Use 0% Tactical HUD 1 Map Filters NONE Filters NONE Steam 1 RUN: 7d89a6ed-1f88-43b4-8353-daa7b19c27d8